{"text_format":"1","workbook":"xlsx","n_sheets":1,"sheets":["Feuil1"],"not_rendered":{"charts":0,"images":1,"macros":1,"external_links":0,"defined_names":1,"comments":0,"pivot_tables":0},"unopened":[],"bounds":{"document_bytes":16777216,"sheet_cells":100000,"rows_first":2000,"rows_last":500,"rows_between":2000,"halvings":0,"cell_chars":16384,"cell_head_chars":4096},"cells_cut":0,"cells_raw":0,"read":"whole","date_system":"1900"}

{"sheet":"Feuil1","index":0,"n_rows":303,"n_cols":52,"rows_kept":303,"cut":false,"hidden":false,"merged":[[13,0,13,1],[0,5,8,5],[0,2,0,4],[6,2,6,4],[9,2,9,4],[12,4,13,4],[10,4,11,4],[7,4,8,4],[4,4,5,4],[1,4,2,4],[3,2,3,4]]}
["Nom :",null,"Les dangers",null,null,"Test réalisé par \nRégnier David \net Patrice Colsenet\nProfesseur ETE\nLycée Funay Hélène Boucher, \nLe Mans.\nAcadémie de Nantes. ",null,null,"Les dangers","D01","Le Courant électrique est il dangereux pour le corps humain ?",null,1,1,1,1,1,1,1,1,1,1,1,1,null,null,null,null,null,null,null,null,null,null,null,null,null,null,null,null,null,null,null,null,null,null,null,null,null,10,8,1]
["Prénom :",null,"Réponses correctes","%",{"$f":"SUM(M1:M40)*M302+SUM(N1:N40)*N302+SUM(O1:O40)*O302+SUM(P1:P40)*P302+SUM(Q1:Q40)*Q302+SUM(R1:R40)*R302+SUM(S1:S40)*S302+SUM(T1:T40)*T302+SUM(U1:U40)*U302+SUM(V1:V40)*V302+SUM(W1:W40)*W302+SUM(X1:X40)*X302+SUM(Y1:Y40)*Y302+SUM(Z1:Z40)*Z302","v":32},null,null,null,null,"D02","Il y a-t-il une différence apparente entre un conducteur électrique hors tension et sous tension?",null,1,1,1,1,1,1,1,1,1,1,1,1,null,null,null,null,null,null,null,null,null,null,null,null,null,null,null,null,null,null,null,null,null,null,null,null,null,3,16,9]
["Classe :",null,{"$f":"SUM(L1:L40)","v":0},{"$f":" IF(E2=0,0,C3*100/ E2)","v":0},null,null,null,null,null,"D03","Le temps de passage du courant électrique dans le corps humain a-til de l'importance ?",null,1,1,1,1,1,1,1,1,1,1,1,1,null,null,null,null,null,null,null,null,null,null,null,null,null,null,null,null,null,null,null,null,null,null,null,null,null,11,2]
["Date :",null,"Appareillages",null,null,null,null,null,null,"D04","La Valeur de l'intensité du courant électrique dans le corps humain a-t-il de l'importance ?",null,1,1,1,1,1,1,1,1,1,1,1,1,null,null,null,null,null,null,null,null,null,null,null,null,null,null,null,null,null,null,null,null,null,null,null,null,null,17,24]
["Heure de début du test :",null,"Réponses correctes","%",{"$f":"SUM(M41:M60)*M302+SUM(N41:N60)*N302+SUM(O41:O60)*O302+SUM(P41:P60)*P302+SUM(Q41:Q60)*Q302+SUM(R41:R60)*R302+SUM(S41:S60)*S302+SUM(T41:T60)*T302+SUM(U41:U60)*U302+SUM(V41:V60)*V302+SUM(W41:W60)*W302+SUM(X41:X60)*X302+SUM(Y41:Y60)*Y302+SUM(Z41:Z60)*Z302","v":13},null,null,null,null,"D05","En courant alternatif, quelles sont les limites du domaine de tension TBT ?",null,1,1,1,1,1,1,1,1,1,1,1,1,null,null,null,null,null,null,null,null,null,null,null,null,null,null,null,null,null,null,null,null,null,null,null,null,null,30,25]
["Heure de fin test :",null,{"$f":"SUM(L41:L60)","v":0},{"$f":" IF(E5=0,0,C6*100/ E5)","v":0},null,null,null,null,null,"D06","En courant alternatif, quelles sont les limites du domaine de tension BT ?",null,1,1,1,1,1,1,1,1,1,1,1,1,null,null,null,null,null,null,null,null,null,null,null,null,null,null,null,null,null,null,null,null,null,null,null,null,null,15,14]
["Limite de validation :",0.8,"Zones d'environnement",null,null,null,null,null,null,"D07","En courant alternatif, quelles sont les limites du domaine de tension HTA ?",null,1,1,1,1,1,1,1,1,1,1,1,1,null,null,null,null,null,null,null,null,null,null,null,null,null,null,null,null,null,null,null,null,null,null,null,null,null,19,29]
["Test Validé",null,"Réponses correctes","%",{"$f":"SUM(M61:M99)*M302+SUM(N61:N99)*N302+SUM(O61:O99)*O302+SUM(P61:P99)*P302+SUM(Q61:Q99)*Q302+SUM(R61:R99)*R302+SUM(S61:S99)*S302+SUM(T61:T99)*T302+SUM(U61:U99)*U302+SUM(V61:V99)*V302+SUM(W61:W99)*W302+SUM(X61:X99)*X302+SUM(Y61:Y99)*Y302+SUM(Z61:Z99)*Z302","v":26},null,null,null,null,"D08","En courant alternatif, quelles sont les limites du domaine de tension HTB ?",null,1,1,1,1,1,1,1,1,1,1,1,1,null,null,null,null,null,null,null,null,null,null,null,null,null,null,null,null,null,null,null,null,null,null,null,null,null,1,12]
[null,null,{"$f":"SUM(L61:L99)","v":0},{"$f":" IF(E8=0,0,C9*100/ E8)","v":0},null,null,null,null,null,"D09","En courant continu lisse quelles sont les limites de tension TBT ?",null,1,1,1,1,1,1,1,1,1,1,1,1,null,null,null,null,null,null,null,null,null,null,null,null,null,null,null,null,null,null,null,null,null,null,null,null,null,14,31]
["Choix du test","BC","Les limites ",null,null,null,null,null,null,"D10","Un dispositif à courant différentiel résiduel  (DDR) à haute sensibilité de 30 mA protège :",null,1,1,1,1,1,1,1,1,1,1,1,1,null,null,null,null,null,null,null,null,null,null,null,null,null,null,null,null,null,null,null,null,null,null,null,null,null,18,1]
[null,null,"Réponses correctes","%",{"$f":"SUM(M100:M301)*M302+SUM(N100:N301)*N302+SUM(O100:O301)*O302+SUM(P100:P301)*P302+SUM(Q100:Q301)*Q302+SUM(R100:R301)*R302+SUM(S100:S301)*S302+SUM(T100:T301)*T302+SUM(U100:U301)*U302+SUM(V100:V301)*V302+SUM(W100:W301)*W302+SUM(X100:X301)*X302+SUM(Y100:Y301)*Y302+SUM(Z100:Z301)*Z302","v":37},null,null,null,null,"D11","Quels sont les risques présentés par une intervention sur un circuit TBT ?",null,1,1,1,1,1,1,1,1,1,1,1,1,null,null,null,null,null,null,null,null,null,null,null,null,null,null,null,null,null,null,null,null,null,null,null,null,null,27,3]
[null,null,{"$f":"SUM(L101:L301)","v":1},{"$f":" IF(E11=0,0,C12*100/ E11)","v":2.7027027027027026},null,null,null,null,null,"D12","Quels sont les risques présentées par une intervention sur un circuit BT ?",null,1,1,1,1,1,1,1,1,1,1,1,1,null,null,null,null,null,null,null,null,null,null,null,null,null,null,null,null,null,null,null,null,null,null,null,null,null,8,20]
[null,null,"Total","%",{"$f":"SUM(E2,E5,E8,E11)","v":108},null,null,null,null,"D13","Toucher un conducteur dénudé sous tension est considéré comme un contact direct ?",null,1,1,1,1,1,1,1,1,1,1,1,1,null,null,null,null,null,null,null,null,null,null,null,null,null,null,null,null,null,null,null,null,null,null,null,null,null,22,21]
["Entraînement :",null,{"$f":"C12+C9+C6+C3","v":1},{"$f":" IF(E13=0,0,C14*100/ E13)","v":0.92592592592592593},null,null,null,null,null,"D14","S 'électriser en touchant le châssis métallique est considéré comme un contact direct ?",null,1,1,1,1,1,1,1,1,1,1,1,1,null,null,null,null,null,null,null,null,null,null,null,null,null,null,null,null,null,null,null,null,null,null,null,null,null,6,9]
[null,null,null,null,null,null,null,null,null,"D15","Un arc de court-circuit électrique n’a pas de conséquences sur un être humain",null,1,1,1,1,1,1,1,1,1,1,1,1,null,null,null,null,null,null,null,null,null,null,null,null,null,null,null,null,null,null,null,null,null,null,null,null,null,32,6]
[null,null,null,null,null,null,null,null,null,"D16","Un court-circuit peut impliquer la projection de particules en fusion à plus de 1000 km/h",null,1,1,1,1,1,1,1,1,1,1,1,1,null,null,null,null,null,null,null,null,null,null,null,null,null,null,null,null,null,null,null,null,null,null,null,null,null,2,32]
[null,null," ",null,null,null,null,null,null,"D17","La présence d'eau est un facteur aggravant lors de l'électrisation d'une personne.",null,1,1,1,1,1,1,1,1,1,1,1,1,null,null,null,null,null,null,null,null,null,null,null,null,null,null,null,null,null,null,null,null,null,null,null,null,null,26,4]
[null,null,null,null,null,null,null,null,null,"D18","La résistance de l’homme augmente si la tension à laquelle il est soumis augmente",null,1,1,1,1,1,1,1,1,1,1,1,1,null,null,null,null,null,null,null,null,null,null,null,null,null,null,null,null,null,null,null,null,null,null,null,null,null,28,10]
[null,null,null,null,null,null,null,null,null,"D19","La résistance de l'homme augmente si la surface de contact augmente.",null,1,1,1,1,1,1,1,1,1,1,1,1,null,null,null,null,null,null,null,null,null,null,null,null,null,null,null,null,null,null,null,null,null,null,null,null,null,20,7]
[null,null,null,null,null,null,null,null,null,"D20","La résistance de l'homme diminue si la peau est humide.",null,1,1,1,1,1,1,1,1,1,1,1,1,null,null,null,null,null,null,null,null,null,null,null,null,null,null,null,null,null,null,null,null,null,null,null,null,null,12,19]
[null,null,null,null,null,null,null,null,null,"D21","La Tension limite conventionnelle de contact est de 50 V en alternatif.",null,1,1,1,1,1,1,1,1,1,1,1,1,null,null,null,null,null,null,null,null,null,null,null,null,null,null,null,null,null,null,null,null,null,null,null,null,null,13,28]
[null,null,null,null,null,null,null,null,null,"D22","Lors d'une opération sur une batterie de 250 Ah, 12 V les risques encourus sont.",null,1,1,1,1,1,1,1,1,1,1,1,1,null,null,null,null,null,null,null,null,null,null,null,null,null,null,null,null,null,null,null,null,null,null,null,null,null,24,13]
[null,null,null,null,null,null,null,null,null,"D23","Une accoutumance aux risques peut-être source d'accident.",null,1,1,1,1,1,1,1,1,1,1,1,1,null,null,null,null,null,null,null,null,null,null,null,null,null,null,null,null,null,null,null,null,null,null,null,null,null,25,26]
[null,null,null,null,null,null,null,null,null,"D24","Le seul fait de porter des chaussures m'assure une protection contre le contact fortuit avec une pièce nue sous tension en BT.",null,1,1,1,1,1,1,1,1,1,1,1,1,null,null,null,null,null,null,null,null,null,null,null,null,null,null,null,null,null,null,null,null,null,null,null,null,null,4,22]
[null,null,null,null,null,null,null,null,null,"D25","Le seuil de non-lacher en BT à 50Hz est :",null,1,1,1,1,1,1,1,1,1,1,1,1,null,null,null,null,null,null,null,null,null,null,null,null,null,null,null,null,null,null,null,null,null,null,null,null,null,5,23]
[null,null,null,null,null,null,null,null,null,"D26","La THT ",null,1,1,1,1,1,1,1,1,1,1,1,1,null,null,null,null,null,null,null,null,null,null,null,null,null,null,null,null,null,null,null,null,null,null,null,null,null,23,17]
[null,null,null,null,null,null,null,null,null,"D27","La HTA commence à 1500 V en alternatif",null,1,1,1,1,1,1,1,1,1,1,1,1,null,null,null,null,null,null,null,null,null,null,null,null,null,null,null,null,null,null,null,null,null,null,null,null,null,29,11]
[null,null,null,null,null,null,null,null,null,"D28","Electrocution signifie",null,1,1,1,1,1,1,1,1,1,1,1,1,null,null,null,null,null,null,null,null,null,null,null,null,null,null,null,null,null,null,null,null,null,null,null,null,null,21,18]
[null,null,null,null,null,null,null,null,null,"D29","Electrisation signifie",null,1,1,1,1,1,1,1,1,1,1,1,1,null,null,null,null,null,null,null,null,null,null,null,null,null,null,null,null,null,null,null,null,null,null,null,null,null,7,27]
[null,null,null,null,null,null,null,null,null,"D30","Un contact direct peut être la conséquence (plusieurs réponses possibles)",null,1,1,1,1,1,1,1,1,1,1,1,1,null,null,null,null,null,null,null,null,null,null,null,null,null,null,null,null,null,null,null,null,null,null,null,null,null,31,5]
[null,null,null,null,null,null,null,null,null,"D31","Un contact indirect peut être la conséquence",null,1,1,1,1,1,1,1,1,1,1,1,1,null,null,null,null,null,null,null,null,null,null,null,null,null,null,null,null,null,null,null,null,null,null,null,null,null,9,30]
[null,null,null,null,null,null,null,null,null,"D32","Dans quelle zone la fibrillation ventriculaire peut-elle apparaître ?",null,1,1,1,1,1,1,1,1,1,1,1,1,null,null,null,null,null,null,null,null,null,null,null,null,null,null,null,null,null,null,null,null,null,null,null,null,null,16,15]
[null,null,null,null,null,null,null,null,null,null,null,null,null,null,null,null,null,null,null,null,null,null,null,null,null,null,null,null,null,null,null,null,null,null,null,null,null,null,null,null,null,null,null,null,null,null,null,null,null,139,11]
[null,null,null,null,null,null,null,null,null,null,null,null,null,null,null,null,null,null,null,null,null,null,null,null,null,null,null,null,null,null,null,null,null,null,null,null,null,null,null,null,null,null,null,null,null,null,null,null,null,186,116]
[null,null,null,null,null,null,null,null,null,null,null,null,null,null,null,null,null,null,null,null,null,null,null,null,null,null,null,null,null,null,null,null,null,null,null,null,null,null,null,null,null,null,null,null,null,null,null,null,null,43,98]
[null,null,null,null,null,null,null,null,null,null,null,null,null,null,null,null,null,null,null,null,null,null,null,null,null,null,null,null,null,null,null,null,null,null,null,null,null,null,null,null,null,null,null,null,null,null,null,null,null,146,123]
[null,null,null,null,null,null,null,null,null,null,null,null,null,null,null,null,null,null,null,null,null,null,null,null,null,null,null,null,null,null,null,null,null,null,null,null,null,null,null,null,null,null,null,null,null,null,null,null,null,121,54]
[null,null,null,null,null,null,null,null,null,null,null,null,null,null,null,null,null,null,null,null,null,null,null,null,null,null,null,null,null,null,null,null,null,null,null,null,null,null,null,null,null,null,null,null,null,null,null,null,null,60,195]
[null,null,null,null,null,null,null,null,null,null,null,null,null,null,null,null,null,null,null,null,null,null,null,null,null,null,null,null,null,null,null,null,null,null,null,null,null,null,null,null,null,null,null,null,null,null,null,null,null,184,132]
[null,null,null,null,null,null,null,null,null,null,null,null,null,null,null,null,null,null,null,null,null,null,null,null,null,null,null,null,null,null,null,null,null,null,null,null,null,null,null,null,null,null,null,null,null,null,null,null,null,131,61]
[null,null,null,null,null,null,null,null,"Appareillages","A01","un DDR (dispositif à courant différentiel résiduel) de sensibilité 30 mA protège dans tous les cas les personnes contre les contacts directs.",null,1,1,1,1,1,1,1,1,1,1,1,1,null,null,null,null,null,null,null,null,null,null,null,null,null,null,null,null,null,null,null,null,null,null,null,null,null,173,62]
[null,null,null,null,null,null,null,null,null,"A02","Quelle est la sensibilité d'un DDR (dispositif differentiel à courant résiduel) placé à l'origine d'un circuit prise de courant 16-20A ?",null,1,1,1,1,1,1,1,1,1,1,1,1,null,null,null,null,null,null,null,null,null,null,null,null,null,null,null,null,null,null,null,null,null,null,null,null,null,115,154]
[null,null,null,null,null,null,null,null,null,"A03","Quelle est la fonction d'un DDR de sensibilité 300 mA associé à un interrupteur ou à un disjoncteur.",null,1,1,1,1,1,1,1,1,1,1,1,1,null,null,null,null,null,null,null,null,null,null,null,null,null,null,null,null,null,null,null,null,null,null,null,null,null,49,35]
[null,null,null,null,null,null,null,null,null,"A04","Quelle est la fonction d'un disjoncteur ?",null,1,1,1,1,1,1,1,1,1,1,1,1,null,null,null,null,null,null,null,null,null,null,null,null,null,null,null,null,null,null,null,null,null,null,null,null,null,46,108]
[null,null,null,null,null,null,null,null,null,"A05","Quelle est la fonction d'un interrupteur ?",null,1,1,1,1,1,1,1,1,1,1,1,1,null,null,null,null,null,null,null,null,null,null,null,null,null,null,null,null,null,null,null,null,null,null,null,null,null,143,115]
[null,null,null,null,null,null,null,null,null,"A06","Quelle est la fonction d'un sectionneur ?",null,1,1,1,1,1,1,1,1,1,1,1,1,null,null,null,null,null,null,null,null,null,null,null,null,null,null,null,null,null,null,null,null,null,null,null,null,null,142,44]
[null,null,null,null,null,null,null,null,null,"A07","Quel est la signification de ce symbole électrique ?",null,1,1,1,1,1,1,1,1,1,1,1,1,null,null,null,null,null,null,null,null,null,null,null,null,null,null,null,null,null,null,null,null,null,null,null,null,null,24,188]
[null,null,null,null,null,null,null,null,null,"A08","Quel est la signification de ce symbole électrique ?",null,1,1,1,1,1,1,1,1,1,1,1,1,null,null,null,null,null,null,null,null,null,null,null,null,null,null,null,null,null,null,null,null,null,null,null,null,null,50,134]
[null,null,null,null,null,null,null,null,null,"A09","Quel est la signification de ce symbole électrique ?",null,1,1,1,1,1,1,1,1,1,1,1,1,null,null,null,null,null,null,null,null,null,null,null,null,null,null,null,null,null,null,null,null,null,null,null,null,null,80,43]
[null,null,null,null,null,null,null,null,null,"A10","En BT, pour les corps solides, le degré de protection IP est représenté par :",null,1,1,1,1,1,1,1,1,1,1,1,1,null,null,null,null,null,null,null,null,null,null,null,null,null,null,null,null,null,null,null,null,null,null,null,null,null,159,48]
[null,null,null,null,null,null,null,null,null,"A11","Un boitier dont le degré de protection est IP 20 signifie qu'il est :",null,1,1,1,1,1,1,1,1,1,1,1,1,null,null,null,null,null,null,null,null,null,null,null,null,null,null,null,null,null,null,null,null,null,null,null,null,null,141,147]
[null,null,null,null,null,null,null,null,null,"A12","Dans la boite à bornes d’une machine asynchrone BT 1500 W, les connexions ont généralement un degré de protection IP20 ",null,1,1,1,1,1,1,1,1,1,1,1,1,null,null,null,null,null,null,null,null,null,null,null,null,null,null,null,null,null,null,null,null,null,null,null,null,null,59,189]
[null,null,null,null,null,null,null,null,null,"A13","Un sectionneur permet d'isoler un circuit de sa source et peut être condamné.",null,1,1,1,1,1,1,1,1,1,1,1,1,null,null,null,null,null,null,null,null,null,null,null,null,null,null,null,null,null,null,null,null,null,null,null,null,null,10,181]
[null,null,null,null,null,null,null,null,null,null,null,null,null,null,null,null,null,null,null,null,null,null,null,null,null,null,null,null,null,null,null,null,null,null,null,null,null,null,null,null,null,null,null,null,null,null,null,null,null,37,64]
[null,null,null,null,null,null,null,null,null,null,null,null,null,null,null,null,null,null,null,null,null,null,null,null,null,null,null,null,null,null,null,null,null,null,null,null,null,null,null,null,null,null,null,null,null,null,null,null,null,19,170]
[null,null,null,null,null,null,null,null,null,null,null,null,null,null,null,null,null,null,null,null,null,null,null,null,null,null,null,null,null,null,null,null,null,null,null,null,null,null,null,null,null,null,null,null,null,null,null,null,null,172,191]
[null,null,null,null,null,null,null,null,null,null,null,null,null,null,null,null,null,null,null,null,null,null,null,null,null,null,null,null,null,null,null,null,null,null,null,null,null,null,null,null,null,null,null,null,null,null,null,null,null,192,172]
[null,null,null,null,null,null,null,null,null,null,null,null,null,null,null,null,null,null,null,null,null,null,null,null,null,null,null,null,null,null,null,null,null,null,null,null,null,null,null,null,null,null,null,null,null,null,null,null,null,70,31]
[null,null,null,null,null,null,null,null,null,null,null,null,null,null,null,null,null,null,null,null,null,null,null,null,null,null,null,null,null,null,null,null,null,null,null,null,null,null,null,null,null,null,null,null,null,null,null,null,null,187,52]
[null,null,null,null,null,null,null,null,null,null,null,null,null,null,null,null,null,null,null,null,null,null,null,null,null,null,null,null,null,null,null,null,null,null,null,null,null,null,null,null,null,null,null,null,null,null,null,null,null,178,38]
[null,null,null,null,null,null,null,null,"Zones d'environnement","ZE01","Pour le graphique suivant associez le n° des zones 0, 1 et 4 et leur nom :",null,1,1,1,1,1,1,1,1,1,1,1,1,null,null,null,null,null,null,null,null,null,null,null,null,null,null,null,null,null,null,null,null,null,null,null,null,null,40,3]
[null,null,null,null,null,null,null,null,null,"ZE02","Donner la signification des abréviations :",null,1,1,1,1,1,1,1,1,1,1,1,1,null,null,null,null,null,null,null,null,null,null,null,null,null,null,null,null,null,null,null,null,null,null,null,null,null,41,2]
[null,null,null,null,null,null,null,null,null,"ZE03","La distance de garde en BT est de 30 cm.",null,1,1,1,1,1,1,1,1,1,1,1,1,null,null,null,null,null,null,null,null,null,null,null,null,null,null,null,null,null,null,null,null,null,null,null,null,null,92,136]
[null,null,null,null,null,null,null,null,null,"ZE04","La distance minimale d'approche (DMA) est de 30 cm.",null,1,1,1,1,1,1,1,1,1,1,1,1,null,null,null,null,null,null,null,null,null,null,null,null,null,null,null,null,null,null,null,null,null,null,null,null,null,54,184]
[null,null,null,null,null,null,null,null,null,"ZE05","La DMA est la somme de la distance de garde et la distance de tension.",null,1,1,1,1,1,1,1,1,1,1,1,1,null,null,null,null,null,null,null,null,null,null,null,null,null,null,null,null,null,null,null,null,null,null,null,null,null,9,138]
[null,null,null,null,null,null,null,null,null,"ZE06","En BT la distance de tension est égale à 0,1 m ",null,1,1,1,1,1,1,1,1,1,1,1,1,null,null,null,null,null,null,null,null,null,null,null,null,null,null,null,null,null,null,null,null,null,null,null,null,null,100,182]
[null,null,null,null,null,null,null,null,null,"ZE07"," Autour d’une canalisation isolée la DLAP veut dire :",null,1,1,1,1,1,1,1,1,1,1,1,1,null,null,null,null,null,null,null,null,null,null,null,null,null,null,null,null,null,null,null,null,null,null,null,null,null,97,183]
[null,null,null,null,null,null,null,null,null,"ZE08","Autour d’une canalisation isolée enterrée, quelles sont les zones à prendre en compte ?",null,1,1,1,1,1,1,1,1,1,1,1,1,null,null,null,null,null,null,null,null,null,null,null,null,null,null,null,null,null,null,null,null,null,null,null,null,null,6,192]
[null,null,null,null,null,null,null,null,null,"ZE09","La distance d’incertitude pour une canalisation isolée invisible enterrée de classe A est de :",null,1,1,1,1,1,1,1,1,1,1,1,1,null,null,null,null,null,null,null,null,null,null,null,null,null,null,null,null,null,null,null,null,null,null,null,null,null,71,148]
[null,null,null,null,null,null,null,null,null,"ZE10","La distance d’incertitude pour une canalisation isolée invisible enterrée de classe B est de :",null,1,1,1,1,1,1,1,1,1,1,1,1,null,null,null,null,null,null,null,null,null,null,null,null,null,null,null,null,null,null,null,null,null,null,null,null,null,32,58]
[null,null,null,null,null,null,null,null,null,"ZE11","La zone d’incertitude pour une canalisation isolée invisible enterrée est définie sous la forme :",null,1,1,1,1,1,1,1,1,1,1,1,1,null,null,null,null,null,null,null,null,null,null,null,null,null,null,null,null,null,null,null,null,null,null,null,null,null,77,69]
[null,null,null,null,null,null,null,null,null,"ZE12"," En BT, à partir de quelle distance d'une pièce nue et sous tension entre-t-on dans la zone de voisinage renforcée?",null,1,1,1,1,1,1,1,1,1,1,1,1,null,null,null,null,null,null,null,null,null,null,null,null,null,null,null,null,null,null,null,null,null,null,null,null,null,135,113]
[null,null,null,null,null,null,null,null,null,"ZE13","Dans quels cas l'accès à un local ou emplacement est considéré comme reservé aux électriciens (local ou emplacement à risque spécifique électrique), plusieurs réponses possible.",null,1,1,1,1,1,1,1,1,1,1,1,1,null,null,null,null,null,null,null,null,null,null,null,null,null,null,null,null,null,null,null,null,null,null,null,null,null,95,151]
[null,null,null,null,null,null,null,null,null,"ZE14","Quelles sont les actions à réaliser dans la zone d'investigation ?",null,1,1,1,1,1,1,1,1,1,1,1,1,null,null,null,null,null,null,null,null,null,null,null,null,null,null,null,null,null,null,null,null,null,null,null,null,null,168,118]
[null,null,null,null,null,null,null,null,null,"ZE15","Pour les différents cas indiquer le moyen de protection utilisé",null,1,1,1,1,1,1,1,1,1,1,1,1,null,null,null,null,null,null,null,null,null,null,null,null,null,null,null,null,null,null,null,null,null,null,null,null,null,153,159]
[null,null,null,null,null,null,null,null,null,"ZE16","En BT et en champs libre, à quelle distance d'une pièce nue et sous tension se situe la distance limite d'investigation ?",null,1,1,1,1,1,1,1,1,1,1,1,1,null,null,null,null,null,null,null,null,null,null,null,null,null,null,null,null,null,null,null,null,null,null,null,null,null,137,177]
[null,null,null,null,null,null,null,null,null,"ZE17","En BT et champ libre donner les distances limites de la zone de voisinage simple par rapport aux pièces nues sous tension :",null,1,1,1,1,1,1,1,1,1,1,1,1,null,null,null,null,null,null,null,null,null,null,null,null,null,null,null,null,null,null,null,null,null,null,null,null,null,113,71]
[null,null,null,null,null,null,null,null,null,"ZE18","En BT à l'intérieur d'un local ou emplacement d'accès réservé aux élèctriciens, à quelle distance d'une pièce nue sous tension se situe la limite maximale de la zone de voisinage simple ?",null,1,1,1,1,1,1,1,1,1,1,1,1,null,null,null,null,null,null,null,null,null,null,null,null,null,null,null,null,null,null,null,null,null,null,null,null,null,144,109]
[null,null,null,null,null,null,null,null,null,"ZE19","En BT à l'intérieur d'un local ou emplacement d'accès réservé aux élèctriciens, à quelle distance d'une pièce nue sous tension se situe la limite maximale de la zone de voisinage simple ?",null,1,1,1,1,1,1,1,1,1,1,1,1,null,null,null,null,null,null,null,null,null,null,null,null,null,null,null,null,null,null,null,null,null,null,null,null,null,156,144]
[null,null,null,null,null,null,null,null,null,"ZE20","En BT devant une armoire élèctrique ouverte à quelle distance d'une pièce nue et sous tension se situe la limite d'investigation ?",null,1,1,1,1,1,1,1,1,1,1,1,1,null,null,null,null,null,null,null,null,null,null,null,null,null,null,null,null,null,null,null,null,null,null,null,null,null,21,49]
[null,null,null,null,null,null,null,null,null,"ZE21","En BT à l'intérieur d'un local ou emplacement d'accès réservé aux électriciens donner les distance limites de la zone de voisinage simple par rapport aux pièces nues sous tension :",null,1,1,1,1,1,1,1,1,1,1,1,1,null,null,null,null,null,null,null,null,null,null,null,null,null,null,null,null,null,null,null,null,null,null,null,null,null,193,196]
[null,null,null,null,null,null,null,null,null,"ZE22","En BT et pour une canalisation isolée, donner la distance limite d'approche prudente par rapport à cette canalisation.",null,1,1,1,1,1,1,1,1,1,1,1,1,null,null,null,null,null,null,null,null,null,null,null,null,null,null,null,null,null,null,null,null,null,null,null,null,null,150,119]
[null,null,null,null,null,null,null,null,null,"ZE23","Quelles sont les actions à réaliser dans la zone d'approche prudente d’une canalisation isolée visible ?",null,1,1,1,1,1,1,1,1,1,1,1,1,null,null,null,null,null,null,null,null,null,null,null,null,null,null,null,null,null,null,null,null,null,null,null,null,null,198,29]
[null,null,null,null,null,null,null,null,null,"ZE24","En BT et pour une canalisation isolée encastrée dans une cloison, la distance limite d'approche prudente par rapport à cette canalisation est :",null,1,1,1,1,1,1,1,1,1,1,1,1,null,null,null,null,null,null,null,null,null,null,null,null,null,null,null,null,null,null,null,null,null,null,null,null,null,145,14]
[null,null,null,null,null,null,null,null,null,"ZE25","En BT et pour une canalisation isolée encastée dans une cloison, donner la distance limite d'approche prudente par rapport à cette canalisation.",null,1,1,1,1,1,1,1,1,1,1,1,1,null,null,null,null,null,null,null,null,null,null,null,null,null,null,null,null,null,null,null,null,null,null,null,null,null,4,20]
[null,null,null,null,null,null,null,null,null,"ZE26","En BT, donner la distance limite d'approche prudente par rapport à un circuit de terre",null,1,1,1,1,1,1,1,1,1,1,1,1,null,null,null,null,null,null,null,null,null,null,null,null,null,null,null,null,null,null,null,null,null,null,null,null,null,175,28]
[null,null,null,null,null,null,null,null,null,null,null,null,null,null,null,null,null,null,null,null,null,null,null,null,null,null,null,null,null,null,null,null,null,null,null,null,null,null,null,null,null,null,null,null,null,null,null,null,null,27,4]
[null,null,null,null,null,null,null,null,null,null,null,null,null,null,null,null,null,null,null,null,null,null,null,null,null,null,null,null,null,null,null,null,null,null,null,null,null,null,null,null,null,null,null,null,null,null,null,null,null,171,130]
[null,null,null,null,null,null,null,null,null,null,null,null,null,null,null,null,null,null,null,null,null,null,null,null,null,null,null,null,null,null,null,null,null,null,null,null,null,null,null,null,null,null,null,null,null,null,null,null,null,18,17]
[null,null,null,null,null,null,null,null,null,null,null,null,null,null,null,null,null,null,null,null,null,null,null,null,null,null,null,null,null,null,null,null,null,null,null,null,null,null,null,null,null,null,null,null,null,null,null,null,null,91,18]
[null,null,null,null,null,null,null,null,null,null,null,null,null,null,null,null,null,null,null,null,null,null,null,null,null,null,null,null,null,null,null,null,null,null,null,null,null,null,null,null,null,null,null,null,null,null,null,null,null,93,90]
[null,null,null,null,null,null,null,null,null,null,null,null,null,null,null,null,null,null,null,null,null,null,null,null,null,null,null,null,null,null,null,null,null,null,null,null,null,null,null,null,null,null,null,null,null,null,null,null,null,16,63]
[null,null,null,null,null,null,null,null,null,null,null,null,null,null,null,null,null,null,null,null,null,null,null,null,null,null,null,null,null,null,null,null,null,null,null,null,null,null,null,null,null,null,null,null,null,null,null,null,null,94,91]
[null,null,null,null,null,null,null,null,null,null,null,null,null,null,null,null,null,null,null,null,null,null,null,null,null,null,null,null,null,null,null,null,null,null,null,null,null,null,null,null,null,null,null,null,null,null,null,null,null,96,93]
[null,null,null,null,null,null,null,null,null,null,null,null,null,null,null,null,null,null,null,null,null,null,null,null,null,null,null,null,null,null,null,null,null,null,null,null,null,null,null,null,null,null,null,null,null,null,null,null,null,149,73]
[null,null,null,null,null,null,null,null,null,null,null,null,null,null,null,null,null,null,null,null,null,null,null,null,null,null,null,null,null,null,null,null,null,null,null,null,null,null,null,null,null,null,null,null,null,null,null,null,null,105,94]
[null,null,null,null,null,null,null,null,null,null,null,null,null,null,null,null,null,null,null,null,null,null,null,null,null,null,null,null,null,null,null,null,null,null,null,null,null,null,null,null,null,null,null,null,null,null,null,null,null,119,67]
[null,null,null,null,null,null,null,null,null,null,null,null,null,null,null,null,null,null,null,null,null,null,null,null,null,null,null,null,null,null,null,null,null,null,null,null,null,null,null,null,null,null,null,null,null,null,null,null,null,35,32]
[null,null,null,null,null,null,null,null,null,null,null,null,null,null,null,null,null,null,null,null,null,null,null,null,null,null,null,null,null,null,null,null,null,null,null,null,null,null,null,null,null,null,null,null,null,null,null,null,null,129,176]
[null,null,null,null,null,null,null,null,null,null,null,null,null,null,null,null,null,null,null,null,null,null,null,null,null,null,null,null,null,null,null,null,null,null,null,null,null,null,null,null,null,null,null,null,null,null,null,null,null,28,66]
[null,null,null,null,null,null,null,null,"Les Limites","L01","Quelle est la personne chargée d’assurer la direction des travaux d’ordre non électrique ?",null,1,1,null,null,null,null,null,null,null,null,null,null,null,null,null,null,null,null,null,null,null,null,null,null,null,null,null,null,null,null,null,null,null,null,null,null,null,22,16]
[null,null,null,null,null,null,null,null,null,"L02","Quelles sont les opérations considérées comme opérations d’ordre non électrique ? Ces opérations étant effectuées dans l'environnement d'un ouvrage ou d'une installation électrique.",null,1,1,null,null,null,null,null,null,null,null,null,null,null,null,null,null,null,null,null,null,null,null,null,null,null,null,null,null,null,null,null,null,null,null,null,null,null,108,10]
[null,null,null,null,null,null,null,null,null,"L03","Quelles sont les lettres et chiffres désignant l'habilitation d'un exécutant non électricien ?",null,1,1,null,null,null,null,null,null,null,null,null,null,null,null,null,null,null,null,null,null," ",null,null,null,null,null,null,null,null,null,null,null,null,null,null,null,null,124,13]
[null,null,null,null,null,null,null,null,null,"L04","Qui délivre l'habilitation d'un exécutant non électricien ?",null,1,1,null,null,null,null,null,null,null,null,null,null,null,null,null,null,null,null,null,null,null,null,null,null,null,null,null,null,null,null,null,null,null,null,null,null,null,182,167]
[null,null,null,null,null,null,null,null,null,"L05","Quels sont les symboles désignant l'habilitation des personnes exécutant des travaux en fouille à proximité des réseaux électriques enterrés ?",null,1,1,null,null,null,null,null,null,null,null,null,null,null,null,null,null,null,null,null,null,null,null,null,null,null,null,null,null,null,null,null,null,null,null,null,null,null,165,96]
[null,null,null,null,null,null,null,null,null,"L06","Que signifie la lettre B de l'habilitation B0 ?",null,1,null,null,null,null,null,null,null,null,null,null,null,null,null,null,null,null,null,null,null,null,null,null,null,null,null,null,null,null,null,null,null,null,null,null,null,null,166,186]
[null,null,null,null,null,null,null,null,null,"L07","Que signifie le chiffre 0 de l'habilitation B0 ?",null,1,null,null,null,null,null,null,null,null,null,null,null,null,null,null,null,null,null,null,null,null,null,null,null,null,null,null,null,null,null,null,null,null,null,null,null,null,179,190]
[null,null,null,null,null,null,null,null,null,"L08","En basse tension pour exécuter des opérations d'ordre non électrique concourant à l'exploitation ou de maintenance d'ouvrage ou d'installation l'habilitation suffisante est :",null,1,1,null,null,null,null,null,null,null,null,null,null,null,null,null,null,null,null,null,null,null,null,null,null,null,null,null,null,null,null,null,null,null,null,null,null,null,44,102]
[null,null,null,null,null,null,null,null,null,"L09","En basse tension pour exécuter des opérations d'ordre non électrique autres que celles concourant à l'exploitation ou à la maintenance d'ouvrage ou d'installation, l'habilitation suffisante est :",null,1,1,null,null,null,null,null,null,null,null,null,null,null,null,null,null,null,null,null,null,null,null,null,null,null,null,null,null,null,null,null,null,null,null,null,null,null,78,135]
[null,null,null,null,null,null,null,null,null,"L10","Un exécutant titulaire d'une habilitation B0 peut-il accéder à des locaux réservé aux électriciens ?",null,1,null,null,null,null,null,null,null,null,null,null,null,null,null,null,null,null,null,null,null,null,null,null,null,null,null,null,null,null,null,null,null,null,null,null,null,null,126,145]
[null,null,null,null,null,null,null,null,null,"L11","En tant qu'exécutant habilité B0 vous devez :",null,1,null,null,null,null,null,null,null,null,null,null,null,null,null,null,null,null,null,null,null,null,null,null,null,null,null,null,null,null,null,null,null,null,null,null,null,null,189,121]
[null,null,null,null,null,null,null,null,null,"L12","Un chargé de chantier est une personne chargée :",null,null,1,null,null,null,null,null,null,null,null,null,null,null,null,null,null,null,null,null,null,null,null,null,null,null,null,null,null,null,null,null,null,null,null,null,null,null,177,12]
[null,null,null,null,null,null,null,null,null,"L13","Un chargé de chantier peut être :",null,null,1,null,null,null,null,null,null,null,null,null,null,null,null,null,null,null,null,null,null,null,null,null,null,null,null,null,null,null,null,null,null,null,null,null,null,null,72,77]
[null,null,null,null,null,null,null,null,null,"L14","Pour diriger des opérations concourant à l’exploitation de l’ouvrage ou de l’installation, un chargé de chantier doit être : ",null,null,1,null,null,null,null,null,null,null,null,null,null,null,null,null,null,null,null,null,null,null,null,null,null,null,null,null,null,null,null,null,null,null,null,null,null,null,180,131]
[null,null,null,null,null,null,null,null,null,"L15","Pour commencer les opérations sur une installation consignée, un chargé de chantier doit :",null,null,1,null,null,null,null,null,null,null,null,null,null,null,null,null,null,null,null,null,null,null,null,null,null,null,null,null,null,null,null,null,null,null,null,null,null,null,45,42]
[null,null,null,null,null,null,null,null," ","L16","Classer les opérations à effectuer par le chargé de chantier habilité symbole B0 à la fin des opérations :",null,null,1,null,null,null,null,null,null,null,null,null,null,null,null,null,null,null,null,null,null,null,null,null,null,null,null,null,null,null,null,null,null,null,null,null,null,null,34,8]
[null,null,null,null,null,null,null,null,null,"L17","Un chargé de chantier doit réaliser l'analyse des risques avant le début des opérations dont il a la responsabilité :",null,null,1,null,null,null,null,null,null,null,null,null,null,null,null,null,null,null,null,null,null,null,null,null,null,null,null,null,null,null,null,null,null,null,null,null,null,null,8,152]
[null,null,null,null,null,null,null,null,null,"L18","Un surveillant de sécurité électrique :",null,null,1,null,null,null,null,null,null,null,null,null,null,null,null,null,null,null,null,null,null,null,null,null,null,null,null,null,null,null,null,null,null,null,null,null,null,null,74,22]
[null,null,null,null,null,null,null,null,null,"L19","En tant que chargé de chantier en basse tension vous pouvez poser ou faire poser des écrans dans :",null,null,1,null,null,null,null,null,null,null,null,null,null,null,null,null,null,null,null,null,null,null,null,null,null,null,null,null,null,null,null,null,null,null,null,null,null,null,82,97]
[null,null,null,null,null,null,null,null,null,"L20","La mise hors tension est autorisée pour des opérations d'ordre non électrique dans l'environnement de canalisations isolées",null,null,null,null,null,1,null,null,null,null,null,null,null,null,null,null,null,null,null,null,null,null,null,null,null,null,null,null,null,null,null,null,null,null,null,null,null,null,151,24]
[null,null,null,null,null,null,null,null,null,"L21","La mise hors tension comprend obligatoirement les opérations de :",null,null,null,null,null,1,null,null,null,null,null,null,null,null,null,null,null,null,null,null,null,null,null,null,null,null,null,null,null,null,null,null,null,null,null,null,null,null,111,37]
[null,null,null,null,null,null,null,null,null,"L22","Certificat pour tiers",null,null,1,null,null,null,null,null,null,null,null,null,null,null,null,null,null,null,null,null,null,null,null,null,null,null,null,null,null,null,null,null,null,null,null,null,null,null,11,163]
[null,null,null,null,null,null,null,null,null,"L23","Définition de la tension U0c STC",null,null,null,null,null,null,null,null,null,1,null,null,null,null,null,null,null,null,null,null,null,null,null,null,null,null,null,null,null,null,null,null,null,null,null,null,null,null,36,23]
[null,null,null,null,null,null,null,null,null,"L24","Que signifie tension à vide aux bornes d'un module PV ?",null,null,null,null,null,null,null,null,null,1,null,null,null,null,null,null,null,null,null,null,null,null,null,null,null,null,null,null,null,null,null,null,null,null,null,null,null,null,197,103]
[null,null,null,null,null,null,null,null,null,"L25","Quel est le principal risque qui peut apparaitre lors de l'ouverture d'un circuit d'une installation comportant des modules PV ?",null,null,null,null,null,null,null,null,null,1,null,null,null,null,null,null,null,null,null,null,null,null,null,null,null,null,null,null,null,null,null,null,null,null,null,null,null,null,14,200]
[null,null,null,null,null,null,null,null,null,"L26","Quelle est la tension U0c STC maximale qui interdit la manipulation d'un module PV dont les conducteurs ne sont pas équipés de connecteurs normalisés ?",null,null,null,null,null,null,null,null,null,1,null,null,null,null,null,null,null,null,null,null,null,null,null,null,null,null,null,null,null,null,null,null,null,null,null,null,null,null,158,110]
[null,null,null,null,null,null,null,null,null,"L27","Que peut provoquer une erreur de polarité lors de la connexion de module PV ?",null,null,null,null,null,null,null,null,null,1,null,null,null,null,null,null,null,null,null,null,null,null,null,null,null,null,null,null,null,null,null,null,null,null,null,null,null,null,201,199]
[null,null,null,null,null,null,null,null,null,"L28","Le dénudage et le montage ou le démontage sur l’extrémité d’un connecteur débrochable est une opération :",null,null,null,null,null,null,null,null,null,1,null,null,null,null,null,null,null,null,null,null,null,null,null,null,null,null,null,null,null,null,null,null,null,null,null,null,null,null,5,27]
[null,null,null,null,null,null,null,null,null,"L29","Donner l'habilitation minimale pour réaliser les opérations sur une installation photovoltaïque :",null,null,null,null,null,null,null,null,null,1,null,null,null,null,null,null,null,null,null,null,null,null,null,null,null,null,null,null,null,null,null,null,null,null,null,null,null,null,26,99]
[null,null,null,null,null,null,null,null,null,"L30","Réalisant des opérations d’ordre non électrique, que faire en cas de découverte d'un câble relié à un module PV d'ont l'isolant est détérioré ?",null,null,null,null,null,null,null,null,null,1,null,null,null,null,null,null,null,null,null,null,null,null,null,null,null,null,null,null,null,null,null,null,null,null,null,null,null,null,88,7]
[null,null,null,null,null,null,null,null,null,"L31","Les opérations d'ordre électrique sur la partie continue d'une installation PV doivent être réalisées :",null,null,null,null,null,null,null,null,null,1,null,null,null,null,null,null,null,null,null,null,null,null,null,null,null,null,null,null,null,null,null,null,null,null,null,null,null,null,114,40]
[null,null,null,null,null,null,null,null,null,"L32","Un personnel habilité BP peut-il avoir un exécutant sous ses ordres ?",null,null,null,null,null,null,null,null,null,1,null,null,null,null,null,null,null,null,null,null,null,null,null,null,null,null,null,null,null,null,null,null,null,null,null,null,null,null,39,166]
[null,null,null,null,null,null,null,null,null,"L33","Quelle est la personne chargée d’assurer la direction des travaux d'ordre électrique ?",null,null,null,1,null,null,null,null,null,null,null,null,null,null,null,null,null,null,null,null,null,null,null,null,null,null,null,null,null,null,null,null,null,null,null,null,null,null,181,150]
[null,null,null,null,null,null,null,null,null,"L34","Quelles sont les opérations considérées comme des opérations d’ordre électrique ?",null,null,null,1,null,null,null,null,null,null,null,null,null,null,null,null,null,null,null,null,null,null,null,null,null,null,null,null,null,null,null,null,null,null,null,null,null,null,48,174]
[null,null,null,null,null,null,null,null,null,"L35","Quels sont les symboles désignant un exécutant électricien ?",null,null,null,1,null,null,null,null,null,null,null,null,null,null,null,null,null,null,null,null,null,null,null,null,null,null,null,null,null,null,null,null,null,null,null,null,null,null,109,72]
[null,null,null,null,null,null,null,null,null,"L36","Qui délivre l'habilitation d'un exécutant non électricien ?",null,null,null,1,null,null,null,null,null,null,null,null,null,null,null,null,null,null,null,null,null,null,null,null,null,null,null,null,null,null,null,null,null,null,null,null,null,null,63,25]
[null,null,null,null,null,null,null,null,null,"L37","Que signifie la lettre B de l'habilitation B1 ?",null,null,null,1,null,null,null,null,null,null,null,null,null,null,null,null,null,null,null,null,null,null,null,null,null,null,null,null,null,null,null,null,null,null,null,null,null,null,164,76]
[null,null,null,null,null,null,null,null,null,"L38","Que signifie le chiffre 1 de l'habilitation B1 ?",null,null,null,1,null,null,null,null,null,null,null,null,null,null,null,null,null,null,null,null,null,null,null,null,null,null,null,null,null,null,null,null,null,null,null,null,null,null,65,21]
[null,null,null,null,null,null,null,null,null,"L39","Que signifie la lettre V de l'habilitation B1V ?",null,null,null,1,null,null,null,null,null,null,null,null,null,null,null,null,null,null,null,null,null,null,null,null,null,null,null,null,null,null,null,null,null,null,null,null,null,null,195,33]
[null,null,null,null,null,null,null,null,null,"L40","En basse tension pour exécuter des opérations d'ordre électrique l'habilitation suffisante est :",null,null,null,1,null,null,null,null,null,null,null,null,null,null,null,null,null,null,null,null,null,null,null,null,null,null,null,null,null,null,null,null,null,null,null,null,null,null,2,161]
[null,null,null,null,null,null,null,null,null,"L41","En tant qu'exécutant habilité B1 vous devez :",null,null,null,1,null,null,null,null,null,null,null,null,null,null,null,null,null,null,null,null,null,null,null,null,null,null,null,null,null,null,null,null,null,null,null,null,null,null,191,51]
[null,null,null,null,null,null,null,null,null,"L42","Habilité symbole B1V ou symbole B1 pouvez-vous réaliser des opérations d’une intervention ?",null,null,null,1,null,null,null,null,null,null,null,null,null,null,null,null,null,null,null,null,null,null,null,null,null,null,null,null,null,null,null,null,null,null,null,null,null,null,188,46]
[null,null,null,null,null,null,null,null,null,"L43","Habilité symbole B1V et sous la conduite d'un chargé de travaux B2V pouvez-vous réaliser une opération dans la zone 4 :",null,null,null,1,null,null,null,null,null,null,null,null,null,null,null,null,null,null,null,null,null,null,null,null,null,null,null,null,null,null,null,null,null,null,null,null,null,null,25,45]
[null,null,null,null,null,null,null,null,null,"L44","Habilité symbole B1V et sous la conduite d'un chargé d'opérations spécifiques pouvez-vous réaliser :",null,null,null,1,null,null,null,null,null,null,null,null,null,null,null,null,null,null,null,null,null,null,null,null,null,null,null,null,null,null,null,null,null,null,null,null,null,null,79,78]
[null,null,null,null,null,null,null,null,null,"L45","Habilité symbole B1V en basse tension dans quelle zone devez-vous utiliser les EPI ?",null,null,null,1,null,null,null,null,null,null,null,null,null,null,null,null,null,null,null,null,null,null,null,null,null,null,null,null,null,null,null,null,null,null,null,null,null,null,110,84]
[null,null,null,null,null,null,null,null,null,"L46","Habilité symbole B1V en basse tension pouvez-vous réaliser des opérations sous tension ?",null,null,null,1,null,null,null,null,null,null,null,null,null,null,null,null,null,null,null,null,null,null,null,null,null,null,null,null,null,null,null,null,null,null,null,null,null,null,3,36]
[null,null,null,null,null,null,null,null,null,"L47","Le titulaire d'une habilitation symbole B1 ou B1V peut-il accéder à des locaux réservés aux électriciens s’il a été désigné par son employeur pour cela ?",null,null,null,1,null,null,null,null,null,null,null,null,null,null,null,null,null,null,null,null,null,null,null,null,null,null,null,null,null,null,null,null,null,null,null,null,null,null,51,153]
[null,null,null,null,null,null,null,null,null,"L48","Si dans un local réservé aux électriciens toutes les parties actives sont consignées faut-il utiliser les EPI ?",null,null,null,1,null,null,null,null,null,null,null,null,null,null,null,null,null,null,null,null,null,null,null,null,null,null,null,null,null,null,null,null,null,null,null,null,null,null,69,6]
[null,null,null,null,null,null,null,null,null,"L49","Habilité symbole B1V pouvez-vous être désigné comme surveillant de sécurité pour un travail réalisé en BT ?",null,null,null,1,null,null,null,null,null,null,null,null,null,null,null,null,null,null,null,null,null,null,null,null,null,null,null,null,null,null,null,null,null,null,null,null,null,null,169,95]
[null,null,null,null,null,null,null,null,null,"L50","Un surveillant de sécurité :",null,null,null,1,null,null,null,null,null,null,null,null,null,null,null,null,null,null,null,null,null,null,null,null,null,null,null,null,null,null,null,null,null,null,null,null,null,null,133,82]
[null,null,null,null,null,null,null,null,null,"L51","Un surveillant de sécurité électrique de limite :",null,null,null,1,null,null,null,null,null,null,null,null,null,null,null,null,null,null,null,null,null,null,null,null,null,null,null,null,null,null,null,null,null,null,null,null,null,null,73,120]
[null,null,null,null,null,null,null,null,null,"L52","Chargé de travaux, vous avez la mission de participer à l’analyse du risque électrique ",null,null,null,null,1,null,null,null,null,null,null,null,null,null,null,null,null,null,null,null,null,null,null,null,null,null,null,null,null,null,null,null,null,null,null,null,null,null,117,173]
[null,null,null,null,null,null,null,null,null,"L53","Pour réaliser l'analyse des risques il faut prendre en compte :",null,null,null,null,1,null,null,null,null,null,null,null,null,null,null,null,null,null,null,null,null,null,null,null,null,null,null,null,null,null,null,null,null,null,null,null,null,null,147,75]
[null,null,null,null,null,null,null,null,null,"L54","Risques liés à l'induction magnétique :",null,null,null,null,1,null,null,null,null,null,null,null,null,null,null,null,null,null,null,null,null,null,null,null,null,null,null,null,null,null,null,null,null,null,null,null,null,null,42,187]
[null,null,null,null,null,null,null,null,null,"L55","Pour éviter les risques liés à l'induction électromagnétique ou au couplage capacitif il faut réaliser :",null,null,null,null,1,null,null,null,null,null,null,null,null,null,null,null,null,null,null,null,null,null,null,null,null,null,null,null,null,null,null,null,null,null,null,null,null,null,190,168]
[null,null,null,null,null,null,null,null,null,"L56","Quelle est la mesure à prendre en priorité pour éliminer les risques électriques :",null,null,null,null,1,null,null,null,null,null,null,null,null,null,null,null,null,null,null,null,null,null,null,null,null,null,null,null,null,null,null,null,null,null,null,null,null,null,1,79]
[null,null,null,null,null,null,null,null,null,"L57","Un chargé de travaux habilité symbole B2V :",null,null,null,null,1,null,null,null,null,null,null,null,null,null,null,null,null,null,null,null,null,null,null,null,null,null,null,null,null,null,null,null,null,null,null,null,null,null,200,160]
[null,null,null,null,null,null,null,null,null,"L58","Quels sont les symboles qui désignent un chargé de travaux",null,null,null,null,1,null,null,null,null,null,null,null,null,null,null,null,null,null,null,null,null,null,null,null,null,null,null,null,null,null,null,null,null,null,null,null,null,null,199,126]
[null,null,null,null,null,null,null,null,null,"L59","Quel est l'attribut qui peut être ajouté à B2V",null,null,null,null,1,null,null,null,null,null,null,null,null,null,null,null,null,null,null,null,null,null,null,null,null,null,null,null,null,null,null,null,null,null,null,null,null,null,75,50]
[null,null,null,null,null,null,null,null,null,"L60","La lettre V signifie que l'habilité peut opérer dans :",null,null,null,null,1,null,null,null,null,null,null,null,null,null,null,null,null,null,null,null,null,null,null,null,null,null,null,null,null,null,null,null,null,null,null,null,null,null,157,198]
[null,null,null,null,null,null,null,null,null,"L61","Un chargé de travaux habilité symbole B2V peut réaliser :",null,null,null,null,1,null,null,null,null,null,null,null,null,null,null,null,null,null,null,null,null,null,null,null,null,null,null,null,null,null,null,null,null,null,null,null,null,null,140,178]
[null,null,null,null,null,null,null,null,null,"L62","A la fin d'un travail, le chargé de travaux habilité symbole B2V ",null,null,null,null,1,null,null,null,null,null,null,null,null,null,null,null,null,null,null,null,null,null,null,null,null,null,null,null,null,null,null,null,null,null,null,null,null,null,20,201]
[null,null,null,null,null,null,null,null,null,"L63","Pour commencer les travaux d'ordre électrique, un chargé de travaux habilité symbole B2V ",null,null,null,null,1,null,null,null,null,null,null,null,null,null,null,null,null,null,null,null,null,null,null,null,null,null,null,null,null,null,null,null,null,null,null,null,null,null,122,175]
[null,null,null,null,null,null,null,null,null,"L64","Pour commencer des travaux d'ordre non électrique concourant à l'exploitation d'un ouvrage ou d'une installation, un chargé de travaux",null,null,null,null,1,null,null,null,null,null,null,null,null,null,null,null,null,null,null,null,null,null,null,null,null,null,null,null,null,null,null,null,null,null,null,null,null,null,185,137]
[null,null,null,null,null,null,null,null,null,"L65","Comme chargé de travaux vous devez vérifier l’adéquation entre l’habilitation des opérateurs et le travail à réaliser",null,null,null,null,1,null,null,null,null,null,null,null,null,null,null,null,null,null,null,null,null,null,null,null,null,null,null,null,null,null,null,null,null,null,null,null,null,null,23,105]
[null,null,null,null,null,null,null,null,null,"L66","Dans le cas d'une consignation en deux étapes quelles sont les opérations restant à la charge du chargé de travaux habilité symbole B2V ?",null,null,null,null,1,null,null,null,null,null,null,null,null,null,null,null,null,null,null,null,null,null,null,null,null,null,null,null,null,null,null,null,null,null,null,null,null,null,132,106]
[null,null,null,null,null,null,null,null,null,"L67","Comme chargé de travaux habilité symbole B2V vous devez",null,null,null,null,1,null,null,null,null,null,null,null,null,null,null,null,null,null,null,null,null,null,null,null,null,null,null,null,null,null,null,null,null,null,null,null,null,null,104,30]
[null,null,null,null,null,null,null,null,null,"L068","Après avoir reçu l’attestation de consignation en une étape, est-il obligatoire d'effectuer une vérification d'absence de tension sur le lieu de travail avant d’entreprendre le travail prévu ?",null,null,null,null,1,1,null,null,null,null,1,1,null,null,null,null,null,null,null,null,null,null,null,null,null,null,null,null,null,null,null,null,null,null,null,null,null,null,155,74]
[null,null,null,null,null,null,null,null,null,"L069","Le fonctionnement du dispositif de détection d'absence de tension doit-il être vérifié :",null,null,null,null,1,1,null,null,null,null,1,null,null,null,null,null,null,null,null,null,null,null,null,null,null,null,null,null,null,null,null,null,null,null,null,null,null,null,170,149]
[null,null,null,null,null,null,null,null,null,"L070","Qui a la responsabilité du balisage de la zone de travail ?",null,null,null,null,1,null,null,null,null,null,null,null,null,null,null,null,null,null,null,null,null,null,null,null,null,null,null,null,null,null,null,null,null,null,null,null,null,null,55,169]
[null,null,null,null,null,null,null,null,null,"L071","Comme chargé de travaux habilité symbole B2V et avant d'entreprendre le travail vous devez informer les exécutants :",null,null,null,null,1,null,null,null,null,null,null,null,null,null,null,null,null,null,null,null,null,null,null,null,null,null,null,null,null,null,null,null,null,null,null,null,null,null,30,88]
[null,null,null,null,null,null,null,null,null,"L072","En cas d'interruption temporaire des travaux hors tension réalisés après réception d’une attestation de consignation en une étape le chargé de  travaux habilité symbole B2V doit :",null,null,null,null,1,null,null,null,null,null,null,null,null,null,null,null,null,null,null,null,null,null,null,null,null,null,null,null,null,null,null,null,null,null,null,null,null,null,57,56]
[null,null,null,null,null,null,null,null,null,"L073","Suite à une interruption de travaux et en ayant remis l’avis d’interruption de travail au chargé de consignation, avant la reprise de ceux-ci le chargé de travaux habilité symbole B2V doit :",null,null,null,null,1,null,null,null,null,null,null,null,null,null,null,null,null,null,null,null,null,null,null,null,null,null,null,null,null,null,null,null,null,null,null,null,null,null,152,41]
[null,null,null,null,null,null,null,null,null,"L074","A la fin des travaux le chargé de travaux habilité symbole B2V doit :",null,null,null,null,1,null,null,null,null,null,null,null,null,null,null,null,null,null,null,null,null,null,null,null,null,null,null,null,null,null,null,null,null,null,null,null,null,null,134,19]
[null,null,null,null,null,null,null,null,null,"L075","Dans le cas de travaux d’ordre non électrique après suppression du voisinage, le chargé de travaux habilité symbole B2V :",null,null,null,null,1,null,null,null,null,null,null,null,null,null,null,null,null,null,null,null,null,null,null,null,null,null,null,null,null,null,null,null,null,null,null,null,null,null,163,86]
[null,null,null,null,null,null,null,null,null,"L076","L’habillage, la mise en place et le retrait de protecteurs ou d’écrans isolants en zone 4 sur des pièces nues sous tension doivent respecter les prescriptions suivantes :",null,null,null,null,1,null,null,null,null,null,null,null,null,null,null,null,null,null,null,null,null,null,null,null,null,null,null,null,null,null,null,null,null,null,null,null,null,null,99,180]
[null,null,null,null,null,null,null,null,null,"L077","Travaux dans la zone de voisinage simple en basse tension",null,null,null,null,1,null,null,null,null,null,null,null,null,null,null,null,null,null,null,null,null,null,null,null,null,null,null,null,null,null,null,null,null,null,null,null,null,null,76,112]
[null,null,null,null,null,null,null,null,null,"L078","Chargé de travaux habilité symbole B2V vous désignez un surveillant de sécurité électrique d’opération et d’accompagnement",null,null,null,null,1,null,null,null,null,null,null,null,null,null,null,null,null,null,null,null,null,null,null,null,null,null,null,null,null,null,null,null,null,null,null,null,null,null,161,60]
[null,null,null,null,null,null,null,null,null,"L079","Chargé de travaux habilité symbole B2V vous désignez un surveillant de sécurité électrique de limite",null,null,null,null,1,null,null,null,null,null,null,null,null,null,null,null,null,null,null,null,null,null,null,null,null,null,null,null,null,null,null,null,null,null,null,null,null,null,31,107]
[null,null,null,null,null,null,null,null,null,"L080","Une personne chargée de : la conduite, l'utilisation, l'entretien, la maintenance, le dépannage, la surveillance, l'accès d’un ouvrage ou d’une installation électrique, est un",null,null,null,null,1,null,null,null,null,null,null,null,null,null,null,null,null,null,null,null,null,null,null,null,null,null,null,null,null,null,null,null,null,null,null,null,null,null,176,114]
[null,null,null,null,null,null,null,null,null,"L081","Avis de fin de travail",null,null,null,null,1,null,null,null,null,null,null,null,null,null,null,null,null,null,null,null,null,null,null,null,null,null,null,null,null,null,null,null,null,null,null,null,null,null,53,133]
[null,null,null,null,null,null,null,null,null,"L082","Autorisation de travail",null,null,null,null,1,null,null,null,null,null,null,null,null,null,null,null,null,null,null,null,null,null,null,null,null,null,null,null,null,null,null,null,null,null,null,null,null,null,66,104]
[null,null,null,null,null,null,null,null,null,"L083","Attestation de consignation",null,null,null,null,1,null,null,null,null,null,null,null,null,null,null,null,null,null,null,null,null,null,null,null,null,null,null,null,null,null,null,null,null,null,null,null,null,null,67,9]
[null,null,null,null,null,null,null,null,null,"L084","Attestation de première étape de consignation",null,null,null,null,1,null,null,null,null,null,null,null,null,null,null,null,null,null,null,null,null,null,null,null,null,null,null,null,null,null,null,null,null,null,null,null,null,null,64,39]
[null,null,null,null,null,null,null,null,null,"L085","Attestation de mise hors tension",null,null,null,null,1,null,null,null,null,null,null,null,null,null,null,null,null,null,null,null,null,null,null,null,null,null,null,null,null,null,null,null,null,null,null,null,null,null,7,164]
[null,null,null,null,null,null,null,null,null,"L086","Quelle est la procédure qui permet de se garantir contre les conséquences de tout maintien accidentel ou de toute apparition ou réapparition intempestive de tension ?",null,null,null,null,1,null,null,null,null,null,null,null,null,null,null,null,null,null,null,null,null,null,null,null,null,null,null,null,null,null,null,null,null,null,null,null,null,null,106,34]
[null,null,null,null,null,null,null,null,null,"L087","Le personnel non électricien habilité symbole B0 peut-il effectuer : ",null,null,null,null,1,null,null,null,null,null,null,null,null,null,null,null,null,null,null,null,null,null,null,null,null,null,null,null,null,null,null,null,null,null,null,null,null,null,154,59]
[null,null,null,null,null,null,null,null,null,"L088","Sur le chantier, chacun est-il responsable de sa propre sécurité ? ",null,null,null,null,1,null,null,null,null,null,null,null,null,null,null,null,null,null,null,null,null,null,null,null,null,null,null,null,null,null,null,null,null,null,null,null,null,null,47,142]
[null,null,null,null,null,null,null,null,null,"L089","En tant que chargé de travaux habilité symbole B2V, devez-vous vous assurer du port des équipements de protection individuelle par votre personnel ? ",null,null,null,null,1,null,null,null,null,null,null,null,null,null,null,null,null,null,null,null,null,null,null,null,null,null,null,null,null,null,null,null,null,null,null,null,null,null,52,111]
[null,null,null,null,null,null,null,null,null,"L090","Qui a la charge de vérifier le bon état des matériels et outillages collectifs ?",null,null,null,null,1,null,null,null,null,null,null,null,null,null,null,null,null,null,null,null,null,null,null,null,null,null,null,null,null,null,null,null,null,null,null,null,null,null,107,155]
[null,null,null,null,null,null,null,null,null,"L091","En BT après avoir reçu l’attestation de consignation en une étape d’une armoire électrique, est-il obligatoire d'effectuer une vérification d'absence de tension sur le lieu de trav ail avant d’entreprendre le travail prévu ?",null,null,null,null,1,null,null,null,null,null,null,null,null,null,null,null,null,null,null,null,null,null,null,null,null,null,null,null,null,null,null,null,null,null,null,null,null,null,56,141]
[null,null,null,null,null,null,null,null,null,"L092","Une mise à la terre commence par la connexion du dispositif : ",null,null,null,null,1,1,null,null,null,null,null,null,null,null,null,null,null,null,null,null,null,null,null,null,null,null,null,null,null,null,null,null,null,null,null,null,null,null,68,57]
[null,null,null,null,null,null,null,null,null,"L093","La mise à la terre et en court-circuit est-elle toujours requise en basse tension ? ",null,null,null,null,1,1,null,null,null,null,null,null,null,null,null,null,null,null,null,null,null,null,null,null,null,null,null,null,null,null,null,null,null,null,null,null,null,null,194,81]
[null,null,null,null,null,null,null,null,null,"L094","Quel est le ou les symboles désignant l'habilitation d'un chargé de consignation en BT ?",null,null,null,null,null,1,null,null,null,null,null,null,null,null,null,null,null,null,null,null,null,null,null,null,null,null,null,null,null,null,null,null,null,null,null,null,null,null,13,193]
[null,null,null,null,null,null,null,null,null,"L095","Chargé de consignation habilité symbole BC ou HC :",null,null,null,null,null,1,null,null,null,null,null,null,null,null,null,null,null,null,null,null,null,null,null,null,null,null,null,null,null,null,null,null,null,null,null,null,null,null,38,139]
[null,null,null,null,null,null,null,null,null,"L096","Chargé de consignation habilité symbole BC vous avez la mission de participer à l’analyse du risque d’origine électrique",null,null,null,null,null,1,null,null,null,null,null,null,null,null,null,null,null,null,null,null,null,null,null,null,null,null,null,null,null,null,null,null,null,null,null,null,null,null,81,1]
[null,null,null,null,null,null,null,null,null,"L097","Qui désigne le chargé de travauxhabilité symbole B2 ou B2V ?",null,null,null,null,null,1,null,null,null,null,null,null,null,null,null,null,null,null,null,null,null,null,null,null,null,null,null,null,null,null,null,null,null,null,null,null,null,null,29,124]
[null,null,null,null,null,null,null,null,null,"L098","Pour des opérations d’ordre électrique, une même personne peut-elle être chargé de consignation habilité symbole BC et chargé de travaux habilité symbole B2V?",null,null,null,null,null,1,null,null,null,null,null,null,null,null,null,null,null,null,null,null,null,null,null,null,null,null,null,null,null,null,null,null,null,null,null,null,null,null,160,83]
[null,null,null,null,null,null,null,null,null,"L099","Pour des opérations d’ordre électrique, une même personne peut-elle être chargé de consignation et chargé de travaux ? ",null,null,null,null,null,1,null,null,null,null,null,null,null,null,null,null,null,null,null,null,null,null,null,null,null,null,null,null,null,null,null,null,null,null,null,null,null,null,127,158]
[null,null,null,null,null,null,null,null,null,"L100","Dans le cas de travaux d'ordre électrique le chargé de consignation habilité symbole BC transmet l'attestation de consignation :",null,null,null,null,null,1,null,null,null,null,null,null,null,null,null,null,null,null,null,null,null,null,null,null,null,null,null,null,null,null,null,null,null,null,null,null,null,null,125,157]
[null,null,null,null,null,null,null,null,null,"L101","Dans le cas de travaux autres que d'ordre électrique, le chargé de consignation habilité symbole BC transmet l'attestation de consignation ou de mise hors tension :",null,null,null,null,null,1,null,null,null,null,null,null,null,null,null,null,null,null,null,null,null,null,null,null,null,null,null,null,null,null,null,null,null,null,null,null,null,null,162,127]
[null,null,null,null,null,null,null,null,null,"L102","Une attestation de consignation ",null,null,null,null,null,1]
[null,null,null,null,null,null,null,null,null,"L103","Avis de fin de travail",null,null,null,null,null,1]
[null,null,null,null,null,null,null,null,null,"L104","Plusieurs équipes travaillent sur une même installation, est-il recommandé de désigner plusieurs chargés de consignation ?",null,null,null,null,null,1]
[null,null,null,null,null,null,null,null,null,"L105","Plusieurs équipes travaillent sur une même installation, qui assure la coordination ?",null,null,null,null,null,1]
[null,null,null,null,null,null,null,null,null,"L106","Dans le cas d'une consignation en deux étapes quelles sont les opérations qui sont à votre charge ?",1,null,null,null,null,1]
[null,null,null,null,null,null,null,null,null,"L107","Quelle est la procédure qui protège contre les conséquences de tout maintien accidentel ou toute apparition ou réapparition intempestive de tension ?",null,null,null,null,null,1]
[null,null,null,null,null,null,null,null,null,"L108","La mise hors tension comprend obligatoirement les opérations :",null,null,null,null,null,1]
[null,null,null,null,null,null,null,null,null,"L109","En basse tension la consignation comprend obligatoirement les opérations :",null,null,null,null,null,1]
[null,null,null,null,null,null,null,null,null,"L110","Quelle est l’opération à réaliser avant la consignation ?",null,null,null,null,null,1]
[null,null,null,null,null,null,null,null,null,"L111","En basse tension quel est la fonction d'un appareil qui garantit la séparation ?",null,null,null,null,null,1]
[null,null,null,null,null,null,null,null,null,"L112","Quels sont les conducteurs à ne jamais séparer ?",null,null,null,null,null,1]
[null,null,null,null,null,null,null,null,null,"L113","Pour réaliser la condamnation",null,null,null,null,null,1]
[null,null,null,null,null,null,null,null,null,"L114","Chargé de consignation, habilité symbole BC, qui peut vous demander de réaliser les consignations ou les mises hors tension dans le cadre de travaux hors tension ? ",null,null,null,null,null,1]
[null,null,null,null,null,null,null,null,null,"L115","Chargé de consignation habilité symbole BC vous pouvez délivrer des :",null,null,null,null,null,1]
[null,null,null,null,null,null,null,null,null,"L116","Attestation de consignation :",null,null,null,null,null,1]
[null,null,null,null,null,null,null,null,null,"L117","Déconsignation",null,null,null,null,null,1]
[null,null,null,null,null,null,null,null,null,"L118","La déconsignation comprend :",null,null,null,null,null,1]
[null,null,null,null,null,null,null,null,null,"L119","Pour éviter les risques liés à l'induction électromagnétique ou au couplage capacitif il faut réaliser :",null,null,null,null,null,1]
[null,null,null,null,null,null,null,null,null,"L120","La mise à la terre et en court-circuit protège : ",null,null,null,null,null,1]
[null,null,null,null,null,null,null,null,null,"L121","Où doit-on effectuer la VAT, la mise à la terre et en court-circuit sur une installation BT : ",null,null,null,null,null,1]
[null,null,null,null,null,null,null,null,null,"L122","Sur un câble isolé basse tension, les mises à la terre et en court-circuit (MALT et CC) sont posées : ",null,null,null,null,null,1]
[null,null,null,null,null,null,null,null,null,"L123","En basse tension la mise à la terre et en court-circuit est requise si :",null,null,null,null,null,1,null,null,null,null,1]
[null,null,null,null,null,null,null,null,null,"L124","À la fin des opérations, le chargé de consignation habilité symbole BC : ",null,null,null,null,null,1]
[null,null,null,null,null,null,null,null,null,"L125","Quel est le ou les symboles désignant l'habilitation d'un chargé d'intervention?",null,null,null,null,null,null,null,null,null,null,1,1]
[null,null,null,null,null,null,null,null,null,"L126","Quel est le ou les symboles désignant l'habilitation d'un chargé d'intervention générale?",null,null,null,null,null,null,null,null,null,null,1]
[null,null,null,null,null,null,null,null,null,"L127","Quel est le ou les symboles désignant l'habilitation d'un chargé d'intervention élémentaire?",null,null,null,null,null,null,null,null,null,null,1,1]
[null,null,null,null,null,null,null,null,null,"L128","Chargé d'intervention habilité symbole BR, vous avez la mission de participer à l’analyse du risque électrique ?",null,null,null,null,null,null,null,null,null,null,1]
[null,null,null,null,null,null,null,null,null,"L129","Pour réaliser l'analyse des risques il faut prendre en compte :",null,null,null,null,null,null,null,null,null,null,1]
[null,null,null,null,null,null,null,null,null,"L130","Chargé d'intervention générale habilité symbole BR, combien d'exécutant(s) pouvez-vous avoir au maximum sous votre autorité ?",null,null,null,null,null,null,null,null,null,null,1]
[null,null,null,null,null,null,null,null,null,"L131","Une intervention générale BT est une opération :",null,null,null,null,null,null,null,null,null,null,1]
[null,null,null,null,null,null,null,null,null,"L132","Une intervention générale BT peut être réalisée sur :",null,null,null,null,null,null,null,null,null,null,1]
[null,null,null,null,null,null,null,null,null,"L133","Une intervention BT générale peut consister à réaliser :",null,null,null,null,null,null,null,null,null,null,1]
[null,null,null,null,null,null,null,null,null,"L134","Lors d'une intervention BT générale le chargé d'intervention générale habilité symbole BR doit :",null,null,null,null,null,null,null,null,null,null,1]
[null,null,null,null,null,null,null,null,null,"L135","Les opérations de connexion et de déconnexion en présence de tension se déroule en :",null,null,null,null,null,null,null,null,null,null,1]
[null,null,null,null,null,null,null,null,null,"L136","Les opérations de connexion et de déconnexion en présence de tension sont, sauf impossibilité, réalisées hors charge :",null,null,null,null,null,null,null,null,null,null,1]
[null,null,null,null,null,null,null,null,null,"L137","Les opérations de connexion et de déconnexion en présence de tension sont autorisées sur des conducteurs de section maximale de :",null,null,null,null,null,null,null,null,null,null,1]
[null,null,null,null,null,null,null,null,null,"L138","Les opérations de connexion et de déconnexion en présence de tension sont autoriséessur des circuits",null,null,null,null,null,null,null,null,null,null,1]
[null,null,null,null,null,null,null,null,null,"L139","Les opérations de connexion et de déconnexion en présence de tension sur des installations photovoltaïques sont autorisées sur des circuits :",null,null,null,null,null,null,null,null,null,null,1]
[null,null,null,null,null,null,null,null,null,"L140","Pour réaliser les opérations de connexion et de déconnexion en présence de tension il faut :",null,null,null,null,null,null,null,null,null,null,1]
[null,null,null,null,null,null,null,null,null,"L141","Lors d’une intervention BT générale dans la zone 4, le chargé d'intervention générale habilité symbole BR :",null,null,null,null,null,null,null,null,null,null,1]
[null,null,null,null,null,null,null,null,null,"L142","Le chargé d'intervention générale BT doit avoir à sa disposition :",null,null,null,null,null,null,null,null,null,null,1]
[null,null,null,null,null,null,null,null,null,"L143","Remplacement d'un appareil électrique",null,null,null,null,null,null,null,null,null,null,1]
[null,null,null,null,null,null,null,null,null,"L144","Quelle est l'opération qui n'est pas indispensable lors d'une consignation pour son propre compte si l'appareil permettant la séparation est toujours en vue et à portée?",null,null,null,null,null,null,null,null,null,null,1]
[null,null,null,null,null,null,null,null,null,"L145","La séparation peut être effectué par :",null,null,null,null,null,null,null,null,null,null,1]
[null,null,null,null,null,null,null,null,null,"L146","Le chargé d'intervention générale habilité symbole BR doit toujours réaliser la VAT lors d'une consignation :",null,null,null,null,null,null,null,null,null,null,1]
[null,null,null,null,null,null,null,null,null,"L147","En fin d'intervention le chargé d'intervention générale habilité symbole BR doit :",null,null,null,null,null,null,null,null,null,null,1]
[null,null,null,null,null,null,null,null,null,"L148","Une Intervention générale BT sur une installation photovoltaïque peut être réalisée sous l'autorité d'un habilité :",null,null,null,null,null,null,null,null,null,null,1]
[null,null,null,null,null,null,null,null,null,"L149","Les procédures d'accès et de contrôle pour une intervention BT générale :",null,null,null,null,null,null,null,null,null,null,1]
[null,null,null,null,null,null,null,null,null,"L150","Une intervention générale BT peut être réalisée",null,null,null,null,null,null,null,null,null,null,1]
[null,null,null,null,null,null,null,null,null,"L151","Les interventions BT élémentaires sont des interventions sur des circuits obligatoirement :",null,null,null,null,null,null,null,null,null,null,null,1]
[null,null,null,null,null,null,null,null,null,"L152","Les interventions BT élémentaires se limitent :",null,null,null,null,null,null,null,null,null,null,null,1]
[null,null,null,null,null,null,null,null,null,"L153","Un intervenant habilité symbole BS peut-il avoir un exécutant sous son autorité ?",null,null,null,null,null,null,null,null,null,null,null,1]
[null,null,null,null,null,null,null,null,null,"L154","Le chargé d'intervention élémentaire habilité symbole BS doit avoir à sa disposition",null,null,null,null,null,null,null,null,null,null,null,1]
[null,null,null,null,null,null,null,null,null,"L155","Lors d'une intervention élémentaire BT est-il obligatoire de vérifier l'absence de tension sur le lieu de travail?",null,null,null,null,null,null,null,null,null,null,null,1]
[null,null,null,null,null,null,null,null,null,"L156","Le chargé d'intervention élémentaire habilité symbole BS :",null,null,null,null,null,null,null,null,null,null,null,1]
[null,null,null,null,null,null,null,null,null,"L157","La mise hors tension comprend obligatoirement les opérations",null,null,null,null,null,null,null,null,null,null,null,1]
[null,null,null,null,null,null,null,null,null,"L158","Les procédures d'accès et de contrôle pour une intervention élémentaire BT",null,null,null,null,null,null,null,null,null,null,null,1]
[null,null,null,null,null,null,null,null,null,"L159","Un chargé d'intervention élémentaire habilité symbole BS doit, avant de commencer l'intervention:",null,null,null,null,null,null,null,null,null,null,null,1]
[null,null,null,null,null,null,null,null,null,"L160","Quelles sont les règles à mettre en oeuvre lors d'une intervention chez un particulier ?",null,null,null,null,null,null,null,null,null,null,1,1]
[null,null,null,null,null,null,null,null,null,"L161","Une intervention BT élémentaire doit être réalisée hors tension ",null,null,null,null,null,null,null,null,null,null,null,1]
[null,null,null,null,null,null,null,null,null,"L162","La mise hors tension pour un circuit éclairage peut être réalisée par l'ouverture",null,null,null,null,null,null,null,null,null,null,null,1]
[null,null,null,null,null,null,null,null,null,"L163","Un circuit terminal est",null,null,null,null,null,null,null,null,null,null,null,1]
[null,null,null,null,null,null,null,null,null,"L164","Une vérification d'absence de tension doit être réalisée",null,null,null,null,null,null,null,null,null,null,null,1]
[null,null,null,null,null,null,null,null,null,"L165","Quel est le ou les symboles désignant l'habilitation d'un chargé d'opérations spécifiques basse tension ?",null,null,null,null,null,null,1,1,1]
[null,null,null,null,null,null,null,null,null,"L166","Quels sont les attributs qui complètent l'habilitation BE ?",null,null,null,null,null,null,1,1,1]
[null,null,null,null,null,null,null,null,null,"L167","Un chargé d'opération spécifique BT peut faire exécuter des opérations d’ordre électrique dont il a la charge à : ",null,null,null,null,null,null,1,1,1]
[null,null,null,null,null,null,null,null,null,"L168","En zone de voisinage renforcé, pour opérer, l'habilité symbole BE doit :",null,null,null,null,null,null,1,1,1]
[null,null,null,null,null,null,null,null,null,"L169","Les manœuvres sont :",null,null,null,null,null,null,null,null,1]
[null,null,null,null,null,null,null,null,null,"L170","On distingue les manœuvres :",null,null,null,null,null,null,null,null,1]
[null,null,null,null,null,null,null,null,null,"L171","Les manœuvres peuvent être réalisées par des personnes habilitées :",null,null,null,null,null,null,null,null,1]
[null,null,null,null,null,null,null,null,null,"L172","Les manœuvres peuvent être réalisées par des personnes non habilitées si les conditions suivantes sont réunies :",null,null,null,null,null,null,null,null,1]
[null,null,null,null,null,null,null,null,null,"L173","Les manœuvres d'exploitation peuvent avoir pour but :",null,null,null,null,null,null,null,null,1]
[null,null,null,null,null,null,null,null,null,"L174","Les manœuvres d'exploitation peuvent être réalisées à distance",null,null,null,null,null,null,null,null,1]
[null,null,null,null,null,null,null,null,null,"L175","Un appareil assurant seulement la fonction de sectionnement peut-il être manœuvré",null,null,null,null,null,null,null,null,1]
[null,null,null,null,null,null,null,null,null,"L176","Une personne habilité symbole BE manœuvre peut exécuter les manœuvres de consignation ",null,null,null,null,null,null,null,null,1]
[null,null,null,null,null,null,null,null,null,"L177","Quelles sont les opérations considérées comme manœuvre lors d'une consignation ? ",null,null,null,null,null,null,null,null,1]
[null,null,null,null,null,null,null,null,null,"L178","L'appui sur un bouton de coupure d'urgence est considéré comme une manœuvre d'urgence ?",null,null,null,null,null,null,null,null,1]
[null,null,null,null,null,null,null,null,null,"L179","Faut-il réaliser une analyse de risque avant de réaliser une manœuvre ?",null,null,null,null,null,null,null,null,1]
[null,null,null,null,null,null,null,null,null,"L180","Le port des EPI doit-il être systématique lors d'une manœuvre ?",null,null,null,null,null,null,null,null,1]
[null,null,null,null,null,null,null,null,null,"L181","Les essais sont :",null,null,null,null,null,null,null,1]
[null,null,null,null,null,null,null,null,null,"L182","Un chargé d'essais :",null,null,null,null,null,null,null,1]
[null,null,null,null,null,null,null,null,null,"L183","Est-il utile d'être habilité symbole BE Mesurage si l'on est habilité symbole BR ?",null,null,null,null,null,null,null,1]
[null,null,null,null,null,null,null,null,null,"L184","Les mesurages comprennent :",null,null,null,null,null,null,null,1]
[null,null,null,null,null,null,null,null,null,"L185","Le personnel qui procède à un mesurage doit :",null,null,null,null,null,null,null,1,null,null,1]
[null,null,null,null,null,null,null,null,null,"L186"," Il est interdit d'ouvrir le secondaire d'un transformateur de courant sous tension :",null,null,null,null,null,null,null,1]
[null,null,null,null,null,null,null,null,null,"L187"," Il est interdit d'ouvrir le secondaire d'un transformateur de courant sous tension :",null,null,null,null,null,null,null,1]
[null,null,null,null,null,null,null,null,null,"L188","Ordonner les opérations à effectuer lors d'une mesure réalisée avec une pince ampèremétrique :",null,null,null,null,null,null,null,1]
[null,null,null,null,null,null,null,null,null,"L189","Suffit-il être habilité \"BT\" pour opérer sur un récepteur générant une tension supérieure à 1000 V en alternatif et alimenté en basse tension (exemple d'un four à micro-ondes) ?",null,null,null,null,null,null,null,1]
[null,null,null,null,null,null,null,null,null,"L190","Le risque (court-circuit ou choc électrique) encouru par le personnel qui opère dans l'environnement d'une canalisation invisible enterrée dans le cadre de travaux en fouille est fonction :",null,null,null,null,null,null,null,null,null,null,null,null,1]
[null,null,null,null,null,null,null,null,null,"L191","La prévention du risque d’endommagement d’une canalisation enterrée repose notamment :",null,null,null,null,null,null,null,null,null,null,null,null,1]
[null,null,null,null,null,null,null,null,null,"L192","Lors du dégagement de la canalisation, si la nature du sol évolue ou qu’un obstacle imprévu (béton autour de la canalisation) ne permet plus d’utiliser une technique douce :",null,null,null,null,null,null,null,null,null,null,null,null,1]
[null,null,null,null,null,null,null,null,null,"L193","Lors du dégagement de la canalisation et qu'un obstacle apparaît, le travail peut se poursuivre à la suite de l'analyse par l'exploitant et le responsable de projet le risque étant supprimé par :",null,null,null,null,null,null,null,null,null,null,null,null,1]
[null,null,null,null,null,null,null,null,null,"L194","À la suite de la mise à l'air libre d'une canalisation il est interdit :",null,null,null,null,null,null,null,null,null,null,null,null,1]
[null,null,null,null,null,null,null,null,null,"L195","Dans le cadre d'activités qui n'imposent pas de pénétrer dans la zone d'approche prudente de la canalisation :",null,null,null,null,null,null,null,null,null,null,null,null,1]
[null,null,null,null,null,null,null,null,null,"L196","Dans le cadre d'activités qui imposent de pénétrer dans la zone d'approche prudente de la canalisation et que l'analyse de risque indique qu'il n'y a pas de risque d'entrer en contact avec la canalisation :",null,null,null,null,null,null,null,null,null,null,null,null,1]
[null,null,null,null,null,null,null,null,null,"L197","À la suite de l'analyse de la situation qui conclue qu'il n'est pas techniquement possible de travailler sans entrer en contact avec la canalisation isolée ; que le contact peut s'effectuer sans déplacement et sans  contrainte pour ses extrémités et que les risques d'endommagement de l'isolation sont exclus.\nLes activités sans risque pour la canalisation mais qui nécessitent d'entrer en contact avec elle sans la déplacer autorisées sont :",null,null,null,null,null,null,null,null,null,null,null,null,1]
[null,null,null,null,null,null,null,null,null,"L198","À la suite de l'analyse de la situation qui conclue qu'il n'est pas techniquement possible de travailler sans entrer en contact avec la canalisation isolée ; que le contact peut s'effectuer sans déplacement et sans contrainte pour ses extrémités et que les risques d'endommagement de l'isolation sont exclus.\nLes activités sans risque pour la canalisation mais qui nécessitent d'entrer en contact avec elle sans la déplacer doivent être exécutées par :",null,null,null,null,null,null,null,null,null,null,null,null,1]
[null,null,null,null,null,null,null,null,null,"L199","Pour effectuer des opérations qui imposent de pénétrer dans la zone d'approche prudente de la canalisation et que l'analyse de risque indique qu'il n'y a pas de risque d'entrer en contact avec la canalisation, les habilitations requises pour les opérateurs (chargé de chantier et exécutants) sont :",null,null,null,null,null,null,null,null,null,null,null,null,1]
[null,null,null,null,null,null,null,null,null,"L200","Dans la zone d’incertitude d'une canalisation isolée sous tension, le terrassement doit être réalisé par une personne formée selon la réglementation anti-endommagement sous la conduite d’un chargé de chantier habilité symboles BF-HF. ",null,null,null,null,null,null,null,null,null,null,null,null,1]
[null,null,null,null,null,null,null,null,null,"L201","Dans le cadre d'un chantier de fouille, le chargé de chantier peut être habilité symboles B0 & BF.",null,null,null,null,null,null,null,null,null,null,null,null,1]
[null,null,null,null,null,null,null,null,null,null,null,null,{"$f":"IF($B$10=M303,1,0)","v":0},0,0,0,1,0,0,0,0,0,0,0,0,0]
[null,null,null,null,null,null,null,null,null,null,null,null,"B0_éxécutant","B0_Chargé_de_chantier","B1V","B2V","BC","BE_mesurage","BE_Essais","BE_Manœuvre","BP","BR","BS","BF_HF"]